bitfinex-derivatives/quotes_SOLF0:USTF0_20250905
["timestamp","ask_amount","ask_price","bid_price","bid_amount"]
[1757108128912,2.15065182,204.06,203.99,7.44]
[1757108129411,7.56,204.09,203.99,7.44]
[1757108129710,2.15065182,204.06,203.99,7.44]
[1757108129910,2.15065182,204.06,204.02,0.03678571]
[1757108130212,9.71065182,204.06,204.02,7.47678571]
[1757108131707,7.56,204.05,204.02,7.47678571]
[1757108132808,7.56,204.05,204.02,0.03678571]
[1757108133014,7.56,204.03,204.02,0.03678571]
[1757108135711,8.06,204.03,204.02,0.03678571]
[1757108135914,8.06,204.03,203.93,7.44]
[1757108136210,2.15065182,203.99,203.93,7.44]
[1757108137215,7.56,203.97,203.86,7.44]
[1757108137415,2.15065182,203.92,203.86,7.44]
[1757108137613,2.15065182,203.92,203.76,68.7035]
[1757108137614,9.71065182,203.97,203.88,7.44]
[1757108137812,9.71065182,203.97,203.8,68.6892]
[1757108137813,0.03233471,203.91,203.9,7.44]
[1757108138212,2.65065182,204.03,203.91,7.44]
[1757108138416,0.5,204.03,203.95,7.44]
[1757108138611,0.5,204.03,203.96,2.15065182]
[1757108138817,0.0320307,203.99,203.95,0.0324511]
[1757108139229,0.5,204.03,203.99,7.44]
[1757108139419,7.56,204.09,204.01,7.44]
[1757108140525,7.56,204.09,204.03,0.03221802]
[1757108141021,2.15065182,204.12,204.04,9.59065182]
[1757108141221,2.15065182,204.12,204.04,7.44]
[1757108141624,2.15065182,204.1,203.97,7.44]
[1757108141816,2.15065182,204.02,203.94,2.15065182]
[1757108142018,2.15065182,204.04,203.95,7.44]
[1757108142226,9.71065182,204.06,203.98,2.15065182]
[1757108142728,7.56,204.12,204.03,7.44]
[1757108142928,2.15065182,204.11,204.03,7.44]
[1757108144030,2.15065182,204.13,204.06,9.59065182]
[1757108144326,14.66,204.28,204.06,9.59065182]
[1757108144327,2.15065182,204.15,204.06,9.59065182]
[1757108144728,2.15065182,204.13,204.06,7.44]
[1757108146133,2.15065182,204.13,204.07,0.03157258]
[1757108146426,7.56,204.1,204.07,0.03157258]
[1757108146830,7.56,204.1,204.02,9.59065182]
[1757108147334,7.56,204.1,204.04,0.03173044]
[1757108148429,2.15065182,204.07,204.04,0.03173044]
[1757108148729,7.52,204.06,204.0,8.01]
[1757108149335,7.52,204.06,204.01,0.03201529]
[1757108149731,7.52,204.06,204.01,8.04201529]
[1757108152533,5.38161371,204.14,204.02,8.01]
[1757108152534,10.88511461,204.11,204.02,8.01]
[1757108153126,3.36511461,204.05,203.91,8.01]
[1757108153424,19.28161371,204.15,203.95,3.36511461]
[1757108153425,7.52,204.08,203.95,3.36511461]
[1757108153627,7.52,204.08,203.96,8.01]
[1757108154032,7.52,204.04,203.96,8.01]
[1757108154525,0.03204771,204.02,203.96,8.01]
[1757108160831,7.52,204.01,203.87,8.01]
[1757108161034,3.36511461,203.98,203.87,8.01]
[1757108161238,10.88511461,203.98,203.87,8.01]
[1757108161434,0.03149623,203.95,203.87,8.01]
[1757108161835,10.91661084,203.95,203.87,8.01]
[1757108162031,10.91661084,203.95,203.8,319.16511461]
[1757108162231,3.36511461,203.88,203.81,8.01]
[1757108162440,7.52,203.9,203.81,8.01]
[1757108162634,0.03129332,203.87,203.81,8.01]
[1757108163435,3.36511461,203.85,203.71,11.37511461]
[1757108163634,3.36511461,203.85,203.61,384.5743]
[1757108163635,3.36511461,203.85,203.72,8.01]
[1757108163936,7.52,203.77,203.64,11.37511461]
[1757108164137,7.52,203.77,203.65,8.01]
[1757108164336,10.88511461,203.81,203.68,8.01]
[1757108164540,7.52,203.85,203.73,3.36511461]
[1757108164738,3.36511461,203.88,203.74,8.01]
[1757108164937,3.36511461,203.88,203.77,0.03166235]
[1757108165241,3.36511461,203.88,203.78,8.01]
[1757108165436,7.52,203.9,203.78,8.01]
[1757108166239,7.52,203.9,203.82,0.03250974]
[1757108167137,7.52,203.9,203.82,8.04250974]
[1757108176745,7.52,203.9,203.82,0.03250974]
[1757108176941,7.52,203.88,203.69,8.01]
[1757108177148,7.55308481,203.88,203.71,8.01]
[1757108177340,7.55308481,203.88,203.7,4.37471209]
[1757108177341,7.52,203.88,203.72,8.01]
[1757108178149,0.03631038,203.82,203.72,8.01]
[1757108182744,0.03631038,203.82,203.57,8.8412]
[1757108182745,7.78,203.81,203.64,7.54]
[1757108182943,7.78,203.81,203.75,0.03578843]
[1757108183243,7.78,203.81,203.7,7.54]
[1757108183445,0.03187849,203.8,203.7,7.54]
[1757108183750,7.78,203.79,203.7,7.54]
[1757108184143,7.78,203.79,203.64,7.54]
[1757108184749,0.03091928,203.74,203.64,7.54]
[1757108185543,7.78,203.73,203.64,7.54]
[1757108187454,3.37727211,203.72,203.64,7.54]
[1757108188853,0.03091928,203.74,203.64,7.54]
[1757108189355,0.03091928,203.74,203.64,15.33627211]
[1757108189551,0.03091928,203.74,203.65,7.54]
[1757108189946,3.37727211,203.81,203.68,7.54]
[1757108190151,3.37727211,203.82,203.68,7.54]
[1757108190653,0.03160596,203.77,203.68,7.54]
[1757108193054,0.03160596,203.77,203.69,4.3668961]
[1757108193251,0.03160596,203.77,203.7,7.54]
[1757108194655,0.03160596,203.77,203.72,7.54]
[1757108195053,0.03160596,203.77,203.74,7.54]
[1757108195856,0.03160596,203.77,203.73,93.9]
[1757108196050,0.03160596,203.77,203.74,4.37310439]
[1757108196251,0.03160596,203.77,203.74,7.54]
[1757108196657,0.03160596,203.77,203.73,125.6]
[1757108196858,0.03160596,203.77,203.74,7.54]
[1757108197359,0.03160596,203.77,203.73,125.6]
[1757108197559,0.03160596,203.77,203.75,7.54]
[1757108197860,0.03160596,203.77,203.73,125.6]
[1757108198054,0.03160596,203.77,203.74,4.37681101]
[1757108198256,0.03160596,203.77,203.71,125.6]
[1757108198557,0.03160596,203.77,203.72,4.3806174]
[1757108198860,0.03160596,203.77,203.73,4.3806174]
[1757108199055,0.03160596,203.77,203.73,7.54]
[1757108199260,0.03160596,203.77,203.67,7.54]
[1757108199460,0.03160596,203.77,203.69,7.54]
[1757108199661,7.78,203.83,203.71,7.54]
[1757108200258,0.031149,203.79,203.71,7.54]
[1757108201064,0.031149,203.79,203.72,4.38916164]
[1757108201263,0.031149,203.79,203.71,7.54]
[1757108201464,0.031149,203.79,203.72,4.38949535]
[1757108201659,0.031149,203.79,203.71,7.54]
[1757108201860,0.031149,203.79,203.73,7.54]
[1757108202262,0.031149,203.79,203.75,7.54]
[1757108202463,0.031149,203.79,203.7,45.5377]
[1757108202763,0.031149,203.79,203.71,4.39294341]
[1757108202963,0.031149,203.79,203.73,7.54]
[1757108203259,0.031149,203.79,203.74,4.39294341]
[1757108203464,0.031149,203.79,203.75,4.39294341]
[1757108203657,0.031149,203.79,203.73,7.54]
[1757108203858,0.031149,203.79,203.75,7.54]
[1757108204057,0.031149,203.79,203.76,4.40248662]
[1757108204260,0.031149,203.79,203.77,7.54]
[1757108205460,0.031149,203.79,203.68,4.4182]
[1757108205764,7.78,203.83,203.69,36.66327108]
[1757108206065,0.03275585,203.76,203.71,7.54]
[1757108206366,0.03275585,203.76,203.73,7.54]
[1757108206562,0.03275585,203.76,203.75,7.54]
[1757108206762,0.03275585,203.76,203.75,11.94327108]
[1757108208165,9.2,203.93,203.75,11.94327108]
[1757108208166,7.78,203.88,203.76,7.54]
[1757108208363,7.78,203.88,203.78,7.55]
[1757108208660,7.78,203.88,203.8,7.55]
[1757108208864,7.68,203.92,203.82,7.55]
[1757108209054,7.68,203.92,203.83,4.40327108]
[1757108209261,7.68,203.92,203.84,4.40327108]
[1757108209461,7.68,203.92,203.85,4.4356633]
[1757108209670,7.68,203.92,203.85,0.03239222]
[1757108209864,7.68,203.92,203.85,7.58239222]
[1757108210066,7.68,203.98,203.86,4.40265174]
[1757108210264,7.68,203.98,203.85,7.58239222]
[1757108210465,7.68,203.98,203.86,4.40159877]
[1757108210664,7.68,203.98,203.89,0.03439627]
[1757108211570,13.07093426,203.98,203.89,0.03439627]
[1757108212670,7.68,203.98,203.9,7.55]
[1757108212870,7.68,204.01,203.91,4.39881326]
[1757108213063,7.68,204.01,203.92,11.94881326]
[1757108213263,7.68,204.05,203.93,4.39861144]
[1757108213466,7.68,204.05,203.95,7.55]
[1757108213665,7.68,204.05,203.97,0.03346795]
[1757108213959,7.68,204.09,203.98,7.55]
[1757108214466,7.68,204.09,203.93,7.55]
[1757108214673,7.68,204.09,204.01,0.03439763]
[1757108215765,7.68,204.05,203.92,7.55]
[1757108216967,0.0317489,204.01,203.92,7.55]
[1757108222573,7.68,204.0,203.88,7.55]
[1757108223168,0.03455338,203.96,203.88,7.55]
[1757108223375,7.71455338,203.96,203.88,7.55]
[1757108225876,7.71455338,203.96,203.81,7.55]
[1757108226065,7.68,203.93,203.81,7.55]
[1757108226474,0.03209581,203.89,203.81,7.55]
[1757108226777,7.68,203.88,203.81,7.55]
[1757108228072,0.03209581,203.89,203.81,7.55]
[1757108228873,0.03209581,203.89,203.82,125.44]
[1757108231178,0.03209581,203.89,203.81,132.99]
[1757108232277,0.03209581,203.89,203.81,125.44]
[1757108232577,0.03209581,203.89,203.82,7.55]
[1757108233479,0.03209581,203.89,203.78,316.14]
[1757108233480,7.68,203.88,203.79,7.55]
[1757108233775,7.68,203.87,203.73,7.55]
[1757108233975,5.39093426,203.88,203.73,132.99]
[1757108234279,0.03345449,203.82,203.73,132.99]
[1757108234680,0.03345449,203.82,203.73,7.55]
[1757108234880,7.68,203.81,203.67,7.55]
[1757108235079,7.68,203.81,203.68,4.38661167]
[1757108235275,7.68,203.81,203.67,7.55]
[1757108235473,0.03101483,203.77,203.69,7.55]
[1757108236976,0.03101483,203.77,203.71,11.9676]
[1757108237184,0.03101483,203.77,203.73,7.55]
[1757108237385,0.03101483,203.77,203.74,129.82970477]
[1757108237683,0.03101483,203.77,203.75,7.55]
[1757108237978,0.03101483,203.77,203.74,125.44]
[1757108239086,0.03101483,203.77,203.75,7.46]
[1757108239585,0.03101483,203.77,203.74,125.44]
[1757108239773,0.03101483,203.77,203.75,7.46]
[1757108240283,0.03101483,203.77,203.74,125.44]
[1757108240482,0.03101483,203.77,203.76,7.46]
[1757108240783,0.03101483,203.77,203.76,94.48]
[1757108241775,7.42,203.91,203.77,7.46]
[1757108243085,7.42,203.91,203.82,0.03492788]
[1757108243891,7.42,203.91,203.83,7.46]
[1757108244593,7.42,203.91,203.82,0.03492788]
[1757108245292,7.42,203.91,203.82,7.49492788]
[1757108253103,7.42,203.94,203.83,4.39653308]
[1757108253299,7.42,203.94,203.84,7.46]
[1757108253597,2.15643486,203.93,203.86,7.46]
[1757108253902,2.15643486,203.93,203.87,0.03556941]
[1757108254900,7.42,203.94,203.87,0.03556941]
[1757108255098,2.15643486,203.95,203.88,7.46]
[1757108255296,2.15643486,203.97,203.88,7.46]
[1757108255702,2.15643486,203.97,203.89,2.15643486]
[1757108256202,7.42,204.01,203.92,7.46]
[1757108256401,7.42,204.01,203.93,2.15643486]
[1757108256702,9.57643486,204.01,203.93,2.15643486]
[1757108256899,2.15643486,203.99,203.95,0.03617126]
[1757108257406,7.42,203.98,203.95,0.03617126]
[1757108258503,7.42,204.03,203.95,0.03617126]
[1757108261601,5.38788079,204.0,203.95,0.03617126]
[1757108261807,7.42,203.99,203.95,0.03617126]
[1757108262000,7.92,203.99,203.95,0.03617126]
[1757108263306,0.5,203.98,203.95,0.03617126]
[1757108263502,7.42,203.97,203.95,0.03617126]
[1757108263806,7.42,203.99,203.95,0.03617126]
[1757108266204,5.38788079,203.96,203.95,0.03617126]
[1757108266406,12.80788079,203.96,203.95,0.03617126]
[1757108266602,13.30788079,203.96,203.95,0.03617126]
[1757108267207,12.80788079,203.96,203.95,0.03617126]
[1757108269106,7.42,203.96,203.95,0.03617126]
[1757108269301,5.38788079,204.0,203.95,0.03617126]
[1757108269506,7.71,203.99,203.95,0.03617126]
[1757108270307,5.38788079,204.0,203.95,0.03617126]
[1757108270512,7.71,203.99,203.95,0.03617126]
[1757108270711,5.38788079,204.0,203.95,0.03617126]
[1757108271405,14.14088482,204.02,203.95,0.03617126]
[1757108271608,7.71,204.01,203.95,0.03617126]
[1757108277514,11.07796017,204.01,203.95,0.03617126]
[1757108277913,7.71,204.01,203.95,0.03617126]
[1757108278114,11.07796017,204.01,203.95,0.03617126]
[1757108279514,7.71,204.04,203.96,7.38]
[1757108279812,11.07796017,204.04,203.96,7.38]
[1757108280326,11.07796017,204.04,203.98,0.0371152]
[1757108280815,3.36796017,204.06,203.98,7.4171152]
[1757108281011,3.36796017,204.07,203.98,7.4171152]
[1757108281215,7.71,204.08,203.98,7.4171152]
[1757108282112,7.71,204.08,204.0,7.38]
[1757108286421,7.71,204.11,204.0,7.38]
[1757108286919,7.71,204.11,204.03,0.03515776]
[1757108287119,7.71,204.11,204.03,7.41515776]
[1757108302126,7.79,204.15,204.03,7.41515776]
[1757108302428,11.15796017,204.15,204.03,7.38]
[1757108302823,11.15796017,204.15,204.07,0.03419282]
[1757108308430,7.79,204.15,204.08,7.75]
[1757108313436,5.38161371,204.24,204.12,7.75]
[1757108313637,7.79,204.3,204.18,7.75]
[1757108313834,7.79,204.3,204.22,7.75]
[1757108314738,7.79,204.3,204.24,3.36796017]
[1757108316641,6.23393862,204.38,204.27,3.36796017]
[1757108316842,7.79,204.37,204.27,3.36796017]
[1757108318741,7.79,204.37,204.26,7.75]
[1757108320347,7.79,204.37,204.27,3.36796017]
[1757108321541,7.79,204.37,204.28,7.75]
[1757108322456,7.79,204.37,204.21,14.92]
[1757108322457,7.79,204.42,204.33,3.36796017]
[1757108325650,7.79,204.42,204.33,11.11796017]
[1757108326158,7.79,204.42,204.33,10.91796017]
[1757108329747,3.36796017,204.44,204.33,7.75]
[1757108329953,7.66,204.43,204.33,7.75]
[1757108333555,7.66,204.4,204.33,9.89666503]
[1757108334052,7.66,204.4,204.33,7.75]
[1757108334250,7.66,204.36,204.28,2.14666503]
[1757108334958,7.66,204.36,204.3,2.14666503]
[1757108335359,7.66,204.36,204.28,2.14666503]
[1757108336757,7.66,204.36,204.27,2.14666503]
[1757108336949,2.14666503,204.35,204.27,2.14666503]
[1757108337556,7.66,204.34,204.25,9.99666503]
[1757108340456,2.14666503,204.31,204.25,7.85]
[1757108340660,7.66,204.3,204.21,9.99666503]
[1757108341063,2.14666503,204.29,204.21,7.85]
[1757108341259,7.66,204.28,204.21,7.85]
[1757108342266,2.14666503,204.27,204.21,7.85]
[1757108343767,7.66,204.28,204.21,7.85]
[1757108344675,2.14666503,204.25,204.16,7.85]
[1757108344875,2.14666503,204.23,204.16,7.85]
[1757108345671,7.66,204.22,204.16,7.85]
[1757108347176,2.14666503,204.21,204.14,7.85]
[1757108348777,9.80666503,204.21,204.14,7.85]
[1757108349175,9.80666503,204.19,204.14,7.85]
[1757108350081,7.66,204.19,204.14,7.85]
[1757108350378,9.80666503,204.19,204.14,7.85]
[1757108350677,9.80666503,204.19,204.12,7.85]
[1757108351980,7.66,204.19,204.12,7.85]
[1757108354285,2.14666503,204.21,203.96,7.85]
[1757108354286,7.66,204.12,203.96,7.85]
[1757108354486,2.14666503,204.03,203.99,7.85]
[1757108354681,2.14666503,204.03,204.0,12.25047324]
[1757108354881,2.14666503,204.03,204.01,4.40047324]
[1757108355079,2.14666503,204.03,203.94,7.85]
[1757108355280,2.14666503,204.03,203.96,7.85]
[1757108355480,2.14666503,204.01,203.98,7.85]
[1757108355786,11.68,204.12,203.98,7.85]
[1757108355787,2.14666503,204.0,203.98,7.85]
[1757108357383,2.14666503,204.0,203.9,7.85]
[1757108357585,2.14666503,203.96,203.91,4.39138503]
[1757108357786,2.14666503,203.94,203.93,7.85]
[1757108357980,13.94,204.09,203.73,77.5456]
[1757108357981,7.66,203.98,203.89,7.85]
[1757108358186,7.66,203.98,203.82,40.66]
[1757108358187,2.14666503,203.92,203.91,7.85]
[1757108359490,2.14666503,203.92,203.84,7.74]
[1757108359791,2.14666503,203.9,203.85,4.38025408]
[1757108360091,2.14666503,203.9,203.81,2.14666503]
[1757108360092,2.14666503,203.9,203.86,4.38025408]
[1757108360286,2.14666503,203.9,203.83,7.74]
[1757108360584,2.14666503,203.93,203.85,7.74]
[1757108360787,7.32,204.0,203.87,7.74]
[1757108360989,2.14666503,203.96,203.87,7.74]
[1757108361289,2.14666503,203.96,203.88,2.14666503]
[1757108361492,2.14666503,203.96,203.89,7.74]
[1757108365489,9.46666503,203.94,203.8,4.4155]
[1757108365697,2.14666503,203.92,203.85,7.74]
[1757108367297,2.14666503,203.93,203.85,7.74]
[1757108368196,7.32,203.94,203.85,7.74]
[1757108368387,9.46666503,203.94,203.85,7.74]
[1757108369393,7.32,203.94,203.87,7.74]
[1757108369592,9.46666503,203.94,203.87,7.74]
[1757108375706,7.32,203.98,203.89,7.74]
[1757108375909,9.46666503,203.98,203.89,7.74]
[1757108376106,9.46666503,203.98,203.91,7.74]
[1757108377805,14.73,204.13,203.97,7.74]
[1757108378007,2.14666503,204.16,204.08,2.14666503]
[1757108378202,2.14666503,204.16,204.09,7.74]
[1757108378908,2.14666503,204.18,204.09,9.88666503]
[1757108379406,7.32,204.19,204.09,7.74]
[1757108379603,7.32,204.19,204.03,7.74]
[1757108380205,12.69792755,204.19,204.03,7.74]
[1757108380607,8.34,204.2,204.03,7.74]
[1757108380608,7.32,204.14,204.03,7.74]
[1757108381604,7.32,204.14,203.99,7.74]
[1757108383612,7.32,204.14,204.0,4.37255936]
[1757108383912,7.32,204.14,203.99,7.74]
[1757108384305,7.32,204.14,204.0,4.37533378]
[1757108384610,7.32,204.14,203.99,7.74]
[1757108384910,7.32,204.14,204.01,7.74]
[1757108387112,7.32,204.14,204.03,7.74]
[1757108391813,12.69792755,204.14,204.03,7.74]
[1757108395511,7.32,204.14,204.03,7.74]
[1757108395712,8.747285,204.11,203.95,7.71]
[1757108395912,8.03,204.1,203.96,4.39659981]
[1757108396113,8.03,204.1,203.97,4.39659981]
[1757108396314,8.03,204.1,203.98,4.39905354]
[1757108396616,8.03,204.1,203.97,7.71]
[1757108400321,8.03,204.06,203.93,7.71]
[1757108400610,8.03,204.02,203.83,7.71]
[1757108400812,8.747285,203.99,203.85,7.71]
[1757108401011,8.03,203.98,203.86,4.40714557]
[1757108401209,8.03,203.98,203.88,7.71]
[1757108401406,8.03,203.98,203.89,4.40662149]
[1757108401619,8.03,203.98,203.88,7.71]
[1757108401807,8.03,203.98,203.89,4.40641015]
[1757108402012,8.03,203.98,203.9,4.40609809]
[1757108402212,8.03,203.98,203.88,7.71]
[1757108402412,8.03,203.98,203.89,4.40587998]
[1757108402613,8.03,203.98,203.9,4.40587998]
[1757108402912,8.03,203.98,203.88,7.71]
[1757108403113,3.36828169,203.96,203.89,4.40587343]
[1757108403309,3.36828169,203.96,203.88,7.71]
[1757108403513,3.36828169,203.96,203.89,4.40616973]
[1757108403719,8.03,203.95,203.88,7.71]
[1757108404518,11.39828169,203.99,203.88,7.71]
[1757108404714,11.39828169,203.99,203.89,4.40590242]
[1757108404913,11.39828169,203.99,203.9,7.71]
[1757108406418,8.03,203.99,203.91,4.40590587]
[1757108406621,8.03,203.99,203.9,7.71]
[1757108406822,8.03,203.99,203.91,4.40590368]
[1757108407017,8.03,203.99,203.9,7.71]
[1757108407214,8.03,203.99,203.91,4.40625252]
[1757108407419,8.03,203.99,203.9,7.71]
[1757108407619,8.03,204.05,203.92,7.71]
[1757108410524,8.75583408,204.02,203.84,7.71]
[1757108410725,8.75583408,204.02,203.83,4.415]
[1757108410726,8.03,204.01,203.86,7.71]
[1757108410925,8.03,204.01,203.87,4.40644422]
[1757108411122,8.03,204.01,203.88,12.11644422]
[1757108411319,8.03,204.01,203.89,4.40644422]
[1757108411527,8.03,204.01,203.88,7.71]
[1757108411728,8.03,204.01,203.89,4.40695882]
[1757108411922,8.03,204.01,203.88,7.71]
[1757108412228,8.03,204.01,203.89,4.40695937]
[1757108412427,8.03,204.01,203.88,7.71]
[1757108412626,8.03,204.01,203.89,4.40735137]
[1757108412828,8.03,204.01,203.88,7.71]
[1757108415836,8.03,204.01,203.89,4.40797795]
[1757108416036,8.03,204.05,203.91,7.71]
[1757108416340,8.03,204.05,203.93,7.71]
[1757108416540,67.6,204.08,203.91,34.42]
[1757108416541,75.63,204.08,203.95,7.71]
[1757108416835,8.03,204.08,203.95,7.71]
[1757108418038,8.03,204.08,203.96,4.38639335]
[1757108418239,133.1,204.13,203.98,7.71]
[1757108418641,133.1,204.13,204.0,7.66]
[1757108421845,7.66,204.09,203.93,7.66]
[1757108422043,7.66,204.09,203.95,7.66]
[1757108427450,3.36710695,204.03,203.95,7.66]
[1757108427749,11.02710695,204.03,203.95,7.66]
[1757108431052,7.66,203.96,203.88,7.66]
[1757108431248,7.66,203.96,203.79,315.86]
[1757108431449,7.66,203.96,203.8,7.66]
[1757108440159,13.04161371,203.96,203.8,7.66]
[1757108440359,7.66,203.96,203.8,7.66]
[1757108440860,13.04161371,203.96,203.8,7.66]
[1757108441154,7.66,203.94,203.8,7.66]
[1757108478181,13.04161371,203.94,203.8,7.66]
[1757108484691,7.66,203.94,203.8,7.66]
[1757108484893,7.66,203.94,203.81,7.34]
[1757108485084,8.07242057,204.01,203.81,7.34]
[1757108485085,7.83,203.99,203.81,7.34]
[1757108485484,7.83,203.99,203.86,7.34]
[1757108485993,7.83,203.99,203.87,4.414]
[1757108486188,5.38161371,204.02,203.88,7.34]
[1757108486189,7.83,204.02,203.88,7.34]
[1757108487696,7.83,204.05,203.91,7.34]
[1757108488595,7.83,204.05,203.92,7.34]
[1757108490591,7.83,204.05,203.92,4.4129]
[1757108490799,7.83,204.1,203.93,7.34]
[1757108491598,7.83,204.09,203.94,7.34]
[1757108492294,7.83,204.09,203.96,7.34]
[1757108494097,7.83,204.16,203.96,7.34]
[1757108494401,7.83,204.16,204.0,7.34]
[1757108495100,7.83,204.16,204.01,59.3111]
[1757108495398,7.83,204.16,204.02,7.34]
[1757108509208,7.83,204.16,204.07,0.03206446]
[1757108509515,0.03423926,204.11,204.07,0.03206446]
[1757108509815,7.61,204.19,204.08,7.84]
[1757108510204,7.61,204.19,204.09,7.84]
[1757108510613,7.61,204.25,204.09,7.84]
[1757108510813,7.61,204.25,204.13,7.84]
[1757108511514,7.61,204.25,204.17,0.03504042]
[1757108521116,3.36014541,204.24,204.17,0.03504042]
[1757108521319,7.61,204.23,204.17,0.03504042]
[1757108524622,7.61,204.23,204.17,7.87504042]
[1757108527720,7.61,204.28,204.17,7.87504042]
[1757108528023,7.61,204.28,204.17,7.84]
[1757108528426,7.61,204.28,204.21,7.84]
[1757108528626,7.61,204.32,204.22,7.84]
[1757108529427,7.61,204.32,204.25,7.87697704]
[1757108531430,7.61,204.36,204.25,7.87697704]
[1757108532426,7.61,204.39,204.27,3.36014541]
[1757108532628,7.61,204.39,204.28,7.84]
[1757108533023,7.61,204.39,204.31,7.87742364]
[1757108535635,7.61,204.36,204.31,0.03742364]
[1757108536045,7.61,204.36,204.27,7.84]
[1757108536237,3.36014541,204.37,204.31,0.0351582]
[1757108537029,7.61,204.36,204.31,0.0351582]
[1757108537234,7.61,204.33,204.31,0.0351582]
[1757108537632,7.61,204.33,204.24,7.84]
[1757108537940,3.36014541,204.34,204.3,0.03636338]
[1757108538234,7.72,204.33,204.3,0.03636338]
[1757108538737,3.36014541,204.34,204.3,0.03636338]
[1757108539138,7.72,204.33,204.3,0.03636338]
[1757108539542,3.36014541,204.34,204.3,0.03636338]
[1757108540238,7.72,204.33,204.3,0.03636338]
[1757108540830,3.36014541,204.34,204.3,0.03636338]
[1757108541338,7.72,204.33,204.3,0.03636338]
[1757108541537,3.36014541,204.34,204.3,0.03636338]
[1757108541938,7.72,204.32,204.3,0.03636338]
[1757108542135,3.36014541,204.34,204.3,0.03636338]
[1757108542136,7.72,204.33,204.3,0.03636338]
[1757108542335,3.36014541,204.34,204.3,0.03636338]
[1757108542841,7.72,204.33,204.3,0.03636338]
[1757108543037,3.36014541,204.34,204.3,0.03636338]
[1757108543539,7.72,204.33,204.3,0.03636338]
[1757108543838,3.36014541,204.34,204.3,0.03636338]
[1757108544236,7.72,204.33,204.3,0.03636338]
[1757108544438,3.36014541,204.34,204.3,0.03636338]
[1757108544638,7.72,204.33,204.3,0.03636338]
[1757108544835,3.36014541,204.34,204.3,0.03636338]
[1757108545033,7.72,204.33,204.3,0.03636338]
[1757108545734,3.36014541,204.34,204.3,0.03636338]
[1757108546137,7.72,204.33,204.3,0.03636338]
[1757108546536,3.36014541,204.34,204.3,0.03636338]
[1757108546736,7.72,204.33,204.3,0.03636338]
[1757108547137,3.36014541,204.34,204.3,0.03636338]
[1757108547338,7.72,204.33,204.3,0.03636338]
[1757108547542,3.36014541,204.34,204.3,0.03636338]
[1757108549744,7.72,204.33,204.3,0.03636338]
[1757108550447,3.36014541,204.34,204.3,0.03636338]
[1757108551243,7.72,204.33,204.3,0.03636338]
[1757108551443,3.36014541,204.34,204.3,0.03636338]
[1757108552343,7.72,204.33,204.3,0.03636338]
[1757108552737,3.36014541,204.34,204.3,0.03636338]
[1757108552939,7.72,204.33,204.3,0.03636338]
[1757108553746,3.36014541,204.34,204.3,0.03636338]
[1757108554647,7.72,204.33,204.3,0.03636338]
[1757108555049,3.36014541,204.34,204.3,0.03636338]
[1757108555347,5.38161371,204.36,204.3,0.03636338]
[1757108555348,7.72,204.32,204.3,0.03636338]
[1757108555546,3.36014541,204.33,204.3,0.03636338]
[1757108555747,7.72,204.32,204.3,0.03636338]
[1757108555948,3.36014541,204.33,204.3,0.03636338]
[1757108556250,7.72,204.32,204.3,0.03636338]
[1757108556448,3.36014541,204.33,204.3,0.03636338]